bitfinex/quotes_BTCUSD_20241101
["timestamp","ask_amount","ask_price","bid_price","bid_amount"]
[1730480750710,0.01311456,69915.0,69903.0,0.14131601]
[1730480750711,0.01311456,69914.0,69913.0,0.143034]
[1730480750919,0.21288977,69933.0,69904.0,0.21288977]
[1730480750920,0.243017,69922.0,69914.0,0.286062]
[1730480751153,0.243017,69922.0,69905.0,0.25057167]
[1730480751154,0.001,69913.0,69906.0,0.286098]
[1730480751406,0.001,69913.0,69912.0,0.143036]
[1730480751607,0.001,69913.0,69912.0,0.23979664]
[1730480751806,0.001,69913.0,69912.0,0.45925167]
[1730480752065,0.001,69913.0,69912.0,0.45639125]
[1730480752581,0.002,69913.0,69912.0,0.45639125]
[1730480752998,0.143004,69928.0,69923.0,0.143014]
[1730480753169,0.143003,69929.0,69922.0,0.143014]
[1730480753370,0.01311629,69925.0,69915.0,0.286061]
[1730480753584,0.12262957,69932.0,69921.0,0.286035]
[1730480753903,0.15611502,69931.0,69925.0,0.143009]
[1730480754016,0.01311602,69930.0,69927.0,0.143004]
[1730480754223,0.01311602,69929.0,69928.0,0.224004]
[1730480754443,0.001644,69932.0,69931.0,0.142998]
[1730480754872,0.015644,69932.0,69931.0,0.142998]
[1730480756065,0.004644,69932.0,69931.0,0.142998]
[1730480756297,0.004644,69932.0,69931.0,0.28145325]
[1730480756522,0.007644,69932.0,69931.0,0.28145325]
[1730480756974,0.001644,69950.0,69931.0,0.28145325]
[1730480756975,0.001644,69950.0,69949.0,0.142961]
[1730480757172,0.001644,69950.0,69949.0,0.7040273]
[1730480757414,0.01476624,69950.0,69949.0,0.7040273]
[1730480757637,0.01476624,69950.0,69945.0,0.285937]
[1730480757840,0.01311872,69949.0,69937.0,0.0939]
[1730480758052,0.142976,69942.0,69939.0,0.21288977]
[1730480758276,0.001644,69950.0,69939.0,0.24356875]
[1730480758277,0.01311872,69941.0,69939.0,0.24356875]
[1730480758493,0.01311872,69941.0,69937.0,0.0939]
[1730480758494,0.01311872,69940.0,69937.0,0.0939]
[1730480758705,0.01311872,69939.0,69937.0,0.0939]
[1730480758965,0.142974,69943.0,69938.0,0.142982]
[1730480759192,0.01312029,69942.0,69939.0,0.004]
[1730480759398,0.01312029,69942.0,69937.0,0.0939]
[1730480759399,0.142983,69938.0,69937.0,0.0939]
[1730480759630,0.142983,69938.0,69930.0,0.081]
[1730480759631,0.01312239,69938.0,69930.0,0.081]
[1730480759852,0.285975,69936.0,69930.0,0.081]
[1730480760064,0.142992,69934.0,69930.0,0.081]
[1730480760286,0.01312239,69933.0,69930.0,0.081]
[1730480760502,0.01312239,69932.0,69931.0,0.142996]
[1730480760731,0.01312701,69932.0,69931.0,0.142998]
[1730480760952,0.01312701,69932.0,69931.0,0.428993]
[1730480761433,0.01312701,69932.0,69931.0,0.78033802]
[1730480761613,0.02103277,69949.0,69948.0,0.142963]
[1730480761828,0.02103277,69949.0,69946.0,0.285931]
[1730480761829,0.24707375,69949.0,69946.0,0.285931]
[1730480762057,0.01315121,69948.0,69947.0,0.28142025]
[1730480762277,0.01315121,69948.0,69947.0,0.6052313]
[1730480762759,0.01315121,69948.0,69947.0,0.35752025]
[1730480762989,0.03420604,69948.0,69943.0,0.0906]
[1730480763190,0.142969,69945.0,69944.0,0.00027156]
[1730480763420,0.17717504,69945.0,69944.0,0.00027156]
[1730480763835,0.39210253,69945.0,69944.0,0.00027156]
[1730480764044,0.41510253,69945.0,69944.0,0.00027156]
[1730480764246,0.48577312,69945.0,69944.0,0.00027156]
[1730480764447,0.4868021,69945.0,69944.0,0.00827156]
[1730480764900,0.4858021,69945.0,69944.0,0.00027156]
[1730480765527,0.4858021,69945.0,69944.0,0.00127156]
[1730480766346,0.4888021,69945.0,69944.0,0.00227156]
[1730480766637,0.52866072,69945.0,69944.0,0.00227156]
[1730480766787,0.50460177,69945.0,69944.0,0.00127156]
[1730480767004,0.52567934,69945.0,69944.0,0.00127156]
[1730480767213,0.52870006,69945.0,69944.0,0.00227156]
[1730480768409,0.52870006,69945.0,69938.0,0.000822]
[1730480768410,0.142981,69939.0,69938.0,0.000822]
[1730480768618,0.45818029,69939.0,69938.0,0.000822]
[1730480770267,0.47118029,69939.0,69938.0,0.001822]
[1730480770504,0.45823377,69939.0,69938.0,0.000822]
[1730480770862,0.45823377,69939.0,69938.0,0.001822]
[1730480770863,0.47123377,69939.0,69938.0,0.001822]
[1730480771507,0.61814335,69939.0,69938.0,0.002822]
[1730480772162,0.6181532,69939.0,69938.0,0.002822]
[1730480773524,0.22378837,69939.0,69938.0,0.002822]
[1730480773746,0.08080737,69939.0,69938.0,0.002822]
[1730480773964,0.21323446,69939.0,69938.0,0.002822]
[1730480774605,0.34925269,69939.0,69938.0,0.001822]
[1730480774818,0.44925269,69939.0,69938.0,0.001822]
[1730480775041,0.47425269,69939.0,69938.0,0.000822]
[1730480775264,0.57365412,69939.0,69938.0,0.000822]
[1730480775904,0.57965412,69939.0,69938.0,0.001822]
[1730480776527,0.30479744,69939.0,69938.0,0.001822]
[1730480777180,0.31879744,69939.0,69938.0,0.002822]
[1730480777386,0.21079744,69939.0,69938.0,0.001822]
[1730480777611,0.21079744,69939.0,69938.0,0.000822]
[1730480777612,0.19679744,69939.0,69938.0,0.000822]
[1730480777841,0.16856267,69939.0,69938.0,0.001822]
[1730480778076,0.05791437,69939.0,69938.0,0.000822]
[1730480778294,0.19689537,69939.0,69938.0,0.000822]
[1730480778541,0.20289537,69939.0,69938.0,0.001822]
[1730480778767,0.20089537,69939.0,69938.0,0.000822]
[1730480779212,0.28017521,69939.0,69938.0,0.000822]
[1730480779461,0.57957046,69939.0,69938.0,0.000822]
[1730480779692,0.65927046,69939.0,69938.0,0.000822]
[1730480779907,0.65527046,69939.0,69938.0,0.000822]
[1730480780354,0.61533046,69939.0,69938.0,0.000822]
[1730480780991,0.61874879,69939.0,69938.0,0.001822]
[1730480781427,0.62074879,69939.0,69938.0,0.001822]
[1730480781645,0.44776895,69939.0,69938.0,0.000822]
[1730480781927,0.44776895,69939.0,69938.0,0.001822]
[1730480781928,0.46176895,69939.0,69938.0,0.001822]
[1730480782130,0.2143137,69939.0,69938.0,0.002822]
[1730480782845,0.2003137,69939.0,69938.0,0.001822]
[1730480783509,0.2143137,69939.0,69938.0,0.001822]
[1730480783960,0.2003137,69939.0,69938.0,0.001822]
[1730480784403,0.08031621,69939.0,69938.0,0.144805]
[1730480785300,0.08031621,69939.0,69938.0,0.000822]
[1730480785301,0.06631621,69939.0,69938.0,0.000822]
[1730480785749,0.06631621,69939.0,69938.0,0.004822]
[1730480785982,0.06631621,69939.0,69938.0,0.000822]
[1730480786195,0.19529721,69939.0,69938.0,0.000822]
[1730480786456,0.05331621,69939.0,69938.0,0.008822]
[1730480786681,0.19629721,69939.0,69938.0,0.0240026]
[1730480786900,0.19529721,69939.0,69938.0,0.004822]
[1730480787369,0.19529721,69939.0,69938.0,0.008822]
[1730480787802,0.19529721,69939.0,69938.0,0.000822]
[1730480788021,0.19529721,69939.0,69938.0,0.005822]
[1730480788473,0.15192323,69939.0,69938.0,0.002822]
[1730480788697,0.2706818,69939.0,69938.0,0.002822]
[1730480788937,0.43213705,69939.0,69938.0,0.002822]
[1730480789167,0.43213705,69939.0,69938.0,0.000822]
[1730480789168,0.81844809,69939.0,69938.0,0.000822]
[1730480789395,0.81844809,69939.0,69938.0,0.001]
[1730480789396,0.68146709,69939.0,69938.0,0.001]
[1730480789668,0.82644809,69939.0,69938.0,0.001]
[1730480790120,0.82444809,69939.0,69938.0,0.001]
[1730480790363,0.83142939,69939.0,69938.0,0.001822]
[1730480790575,0.84542939,69939.0,69938.0,0.001822]
[1730480790790,0.83648807,69939.0,69938.0,0.001822]
[1730480791006,0.83048807,69939.0,69938.0,0.000822]
[1730480791456,0.84448807,69939.0,69938.0,0.001822]
[1730480791697,0.81005354,69939.0,69938.0,0.000822]
[1730480791915,0.85847588,69939.0,69938.0,0.001822]
[1730480793714,0.84953365,69939.0,69938.0,0.001822]
[1730480794717,0.77016963,69939.0,69938.0,0.001822]
[1730480794923,0.21940334,69939.0,69938.0,0.001822]
[1730480795375,0.184981,69939.0,69938.0,0.001822]
[1730480795577,0.2194094,69939.0,69938.0,0.001822]
[1730480796080,0.0624284,69939.0,69938.0,0.001822]
[1730480796285,0.0624284,69939.0,69938.0,0.0306022]
[1730480796488,0.0764284,69939.0,69938.0,0.144805]
[1730480796920,0.0764284,69939.0,69938.0,0.001822]
[1730480796921,0.05524169,69939.0,69938.0,0.001822]
[1730480797146,0.02724169,69939.0,69938.0,0.000822]
[1730480797360,0.01324169,69939.0,69938.0,0.000822]
[1730480797612,0.0394284,69939.0,69938.0,0.143805]
[1730480798294,0.0414284,69939.0,69938.0,0.47064075]
[1730480798523,0.007,69939.0,69938.0,0.47064075]
[1730480798989,0.02023893,69939.0,69938.0,0.47064075]
[1730480799403,0.007,69939.0,69938.0,0.47064075]
[1730480799663,0.02024335,69939.0,69938.0,0.47064075]
[1730480799903,0.001644,69944.0,69938.0,0.23325775]
[1730480800106,0.001644,69944.0,69943.0,0.42141105]
[1730480800321,0.21288977,69982.0,69948.0,0.0976]
[1730480800568,0.21288977,69982.0,69959.0,0.24771105]
[1730480800569,0.142907,69976.0,69959.0,0.24771105]
[1730480800786,0.285811,69977.0,69960.0,0.23185525]
[1730480801659,0.21288977,69982.0,69960.0,0.23185525]
[1730480801660,0.142917,69971.0,69960.0,0.23185525]
[1730480801870,0.142913,69973.0,69960.0,0.23185525]
[1730480802071,0.49870977,69975.0,69960.0,0.23185525]
[1730480802280,0.49870977,69975.0,69961.0,0.0028585]
[1730480802281,0.21288977,69975.0,69961.0,0.0028585]
[1730480802513,0.21288977,69975.0,69961.0,0.21475525]
[1730480802514,0.001644,69962.0,69961.0,0.21475525]
[1730480802724,0.21288977,69975.0,69961.0,0.21475525]
[1730480802725,0.21288977,69975.0,69961.0,0.21761359]
[1730480802936,0.21288977,69974.0,69962.0,0.13845525]
[1730480803169,0.21288977,69974.0,69963.0,0.00285803]
[1730480803391,0.21288977,69974.0,69963.0,0.14131328]
[1730480804047,0.00162,69980.0,69964.0,0.0905]
[1730480804279,0.21288977,69973.0,69965.0,0.14131305]
[1730480804497,0.00162,69980.0,69972.0,0.24771105]
[1730480804722,0.00162,69980.0,69973.0,0.14131305]
[1730480804979,0.00162,69980.0,69974.0,0.1688]
[1730480805204,0.00162,69980.0,69978.0,0.24771105]
[1730480805417,0.00162,69980.0,69979.0,0.14131273]
[1730480805644,0.00262,69980.0,69979.0,0.23311273]
[1730480805856,0.00262,69980.0,69979.0,0.23025525]
[1730480806065,0.00362,69980.0,69979.0,0.23025525]
[1730480806506,0.00262,69980.0,69979.0,0.23025525]
[1730480806901,0.00362,69980.0,69979.0,0.23525525]
[1730480807145,0.00262,69980.0,69979.0,0.23525525]
[1730480810438,0.00262,69980.0,69979.0,0.24125525]
[1730480811692,0.00262,69980.0,69979.0,0.74125525]
[1730480814027,0.00262,69980.0,69979.0,0.92445525]
[1730480814872,0.00162,69980.0,69979.0,0.91945525]
[1730480815076,0.001,69980.0,69979.0,0.91845525]
[1730480815291,0.001,69980.0,69979.0,0.105]
[1730480815483,0.001,69980.0,68715.0,0.30170455]
[1730480815771,0.001,69980.0,69911.0,0.03455098]
[1730480815772,0.24771105,69945.0,69911.0,0.03455098]
[1730480815940,0.1,69933.0,69909.0,0.06]
[1730480816256,0.1,69933.0,69895.0,0.001618]
[1730480816257,0.143059,69901.0,69895.0,0.001618]
[1730480816449,0.24771105,69901.0,69900.0,1.0]
[1730480816771,0.39077005,69901.0,69900.0,1.0]
[1730480817016,0.39077005,69901.0,69900.0,0.36367166]
[1730480817215,0.40388321,69901.0,69900.0,0.36367166]
[1730480817419,0.50388321,69901.0,69900.0,0.20585365]
[1730480817654,0.143069,69896.0,69895.0,0.001618]
[1730480817851,0.28203933,69896.0,69895.0,0.001618]
[1730480818056,0.29991262,69896.0,69895.0,0.001618]
[1730480818280,0.29991262,69896.0,69868.0,0.000809]
[1730480818281,0.243077,69892.0,69891.0,1e-06]
[1730480818504,0.243124,69869.0,69868.0,0.000809]
[1730480818726,0.38229188,69874.0,69868.0,0.000809]
[1730480819160,0.143121,69871.0,69868.0,0.000809]
[1730480819566,0.38229188,69874.0,69868.0,0.000809]
[1730480819769,0.143124,69870.0,69868.0,0.000809]
[1730480819999,0.66852088,69874.0,69868.0,0.000809]
[1730480820235,0.143123,69870.0,69868.0,0.000809]
[1730480820638,0.66852088,69874.0,69868.0,0.000809]
[1730480820790,0.38229188,69874.0,69868.0,0.000809]
[1730480821035,0.143119,69872.0,69868.0,0.000809]
[1730480821223,0.006,69869.0,69868.0,0.000809]
[1730480821840,0.009,69870.0,69868.0,0.000809]
[1730480822215,0.39129188,69874.0,69868.0,0.000809]
[1730480822454,0.143121,69871.0,69868.0,0.000809]
[1730480822646,0.286237,69872.0,69868.0,0.000809]
[1730480822859,0.39129188,69874.0,69856.0,0.0186891]
[1730480822860,0.52542688,69864.0,69856.0,0.0186891]
[1730480823085,0.38229188,69864.0,69856.0,0.0186891]
[1730480823297,0.286248,69870.0,69845.0,0.21468749]
[1730480823298,0.286336,69848.0,69845.0,0.21468749]
[1730480823438,0.38229188,69846.0,69845.0,0.21468749]
[1730480823890,0.38229188,69846.0,69831.0,0.50108949]
[1730480824094,0.38229188,69846.0,69841.0,0.13926425]
[1730480824967,0.38329188,69846.0,69845.0,0.014]
[1730480825404,0.0806263,69876.0,69845.0,0.52074713]
[1730480825621,0.21468749,69859.0,69846.0,0.141318]
[1730480825846,0.50093749,69869.0,69863.0,0.38229188]
[1730480826073,0.143132,69866.0,69863.0,0.38229188]
[1730480826725,0.144769,69870.0,69864.0,0.21468749]
[1730480826975,0.001646,69870.0,69866.0,0.286262]
[1730480827233,0.21468749,69887.0,69868.0,0.286254]
[1730480827445,0.21468749,69878.0,69869.0,0.13845525]
[1730480827659,0.35777549,69887.0,69869.0,0.13845525]
[1730480827660,0.21468749,69887.0,69874.0,0.286229]
[1730480827924,0.21468749,69887.0,69875.0,0.13845525]
[1730480828136,0.21468749,69887.0,69886.0,0.38229188]
[1730480828343,0.143084,69889.0,69886.0,0.38229188]
[1730480828587,0.286158,69892.0,69886.0,0.38229188]
[1730480828811,0.286146,69895.0,69886.0,0.38229188]
[1730480829021,0.00285717,69894.0,69886.0,0.38229188]
[1730480829435,0.009,69887.0,69886.0,0.38329188]
[1730480829865,0.01,69887.0,69886.0,0.38329188]
[1730480830297,0.009,69887.0,69886.0,0.38329188]
[1730480830498,0.009,69887.0,69886.0,0.38429188]
[1730480830716,0.009,69887.0,69886.0,0.38329188]
[1730480830969,0.143083,69890.0,69886.0,0.38229188]
[1730480831174,0.143083,69890.0,69886.0,0.38329188]
[1730480831369,0.143083,69890.0,69886.0,0.38429188]
[1730480831614,0.00285717,69892.0,69886.0,0.38429188]
[1730480831819,0.143078,69892.0,69886.0,0.38429188]
[1730480832038,0.143078,69892.0,69886.0,0.38329188]
[1730480832270,0.143082,69890.0,69886.0,0.38429188]
[1730480832481,0.14308,69891.0,69886.0,0.38429188]
[1730480832691,0.143085,69889.0,69886.0,0.38429188]
[1730480832933,0.04177656,69943.0,69886.0,0.38229188]
[1730480833141,0.143082,69890.0,69886.0,0.38229188]
[1730480833360,0.001,69890.0,69886.0,0.52638088]
[1730480833601,0.143077,69893.0,69886.0,0.38229188]
[1730480833834,0.001,69889.0,69886.0,0.38329188]
[1730480834080,0.001,69889.0,69888.0,0.21468749]
[1730480834311,0.00285717,69904.0,69888.0,0.13845525]
[1730480834518,0.21468749,69908.0,69889.0,0.14131643]
[1730480834519,0.001,69890.0,69889.0,0.14131643]
[1730480834723,0.21468749,69908.0,69889.0,0.14131643]
[1730480834930,0.21468749,69908.0,69907.0,0.143047]
[1730480835135,0.21468749,69908.0,69907.0,0.38229188]
[1730480835343,0.143043,69909.0,69907.0,0.38229188]
[1730480835763,0.21754466,69908.0,69890.0,0.38229188]
[1730480835968,0.21754466,69908.0,69891.0,0.21468749]
[1730480835969,0.143077,69892.0,69891.0,0.21468749]
[1730480836417,0.143077,69892.0,69888.0,0.001]
[1730480836418,0.143084,69889.0,69888.0,0.001]
[1730480836624,0.143084,69889.0,69886.0,0.001]
[1730480836625,0.266088,69887.0,69886.0,0.001]
[1730480836834,0.266108,69877.0,69852.0,0.099]
[1730480837077,0.40742042,69877.0,69847.0,0.21468749]
[1730480837303,0.143124,69869.0,69853.0,0.143157]
[1730480837537,0.143124,69869.0,69854.0,0.21468749]
[1730480837538,0.143139,69862.0,69854.0,0.21468749]
[1730480837752,0.143139,69862.0,69855.0,0.143153]
[1730480837992,0.286274,69863.0,69854.0,0.21468749]
[1730480838197,0.00285717,69862.0,69855.0,0.21468749]
[1730480838611,0.286276,69863.0,69857.0,0.000823]
[1730480838820,0.001,69862.0,69857.0,0.000823]
[1730480839024,0.001,69862.0,69859.0,0.143145]
[1730480839244,0.1,69871.0,69857.0,0.000823]
[1730480839474,0.21468749,69867.0,69857.0,0.000823]
[1730480839679,0.143147,69858.0,69857.0,0.000823]
[1730480839882,0.002,69862.0,69857.0,0.000823]
[1730480839883,0.286282,69861.0,69857.0,0.000823]
[1730480840340,0.143145,69860.0,69857.0,0.000823]
[1730480840558,0.28627,69864.0,69857.0,0.000823]
[1730480840762,0.00285717,69863.0,69857.0,0.000823]
[1730480840976,0.143144,69860.0,69857.0,0.002823]
[1730480841186,0.286278,69862.0,69857.0,0.002823]
[1730480841392,0.143142,69861.0,69857.0,0.143972]
[1730480841605,0.143143,69860.0,69857.0,0.000823]
[1730480841809,0.286278,69862.0,69857.0,0.004823]
[1730480842017,0.143141,69861.0,69857.0,0.004823]
[1730480842230,0.143141,69861.0,69857.0,0.147972]
[1730480842454,0.143147,69858.0,69857.0,0.000823]
[1730480842674,0.143147,69858.0,69857.0,0.004823]
[1730480842873,0.143146,69859.0,69857.0,0.006823]
[1730480843150,0.143146,69859.0,69857.0,0.004823]
[1730480843349,0.143146,69859.0,69857.0,0.002823]
[1730480843560,0.143144,69860.0,69857.0,0.002823]
[1730480843753,0.00285717,69862.0,69857.0,0.000823]
[1730480843978,0.143142,69861.0,69857.0,0.145972]
[1730480844190,0.143142,69861.0,69857.0,0.143972]
[1730480844391,0.01313723,69860.0,69857.0,0.000823]
[1730480844582,0.143147,69858.0,69857.0,0.002823]
[1730480844801,0.15628423,69858.0,69857.0,0.006823]
[1730480844998,0.31575905,69858.0,69857.0,0.006823]
[1730480845209,0.31575905,69858.0,69857.0,0.002823]
[1730480845417,0.31593065,69858.0,69857.0,0.002823]
[1730480845594,0.31593065,69858.0,69857.0,0.006823]
[1730480845794,0.31593065,69858.0,69857.0,0.004823]
[1730480846002,0.31593065,69858.0,69857.0,0.000823]
[1730480846207,0.31593065,69858.0,69857.0,0.002823]
[1730480846379,0.31993065,69858.0,69857.0,0.000823]
[1730480846600,0.31993065,69858.0,69857.0,0.001823]
[1730480846806,0.32593065,69858.0,69857.0,0.001823]
[1730480848084,0.44893065,69858.0,69857.0,0.001823]
[1730480848433,0.44893065,69858.0,69857.0,1e-06]
[1730480848636,0.44893065,69858.0,69854.0,0.0001821]
[1730480848637,0.266153,69855.0,69854.0,0.0001821]
[1730480848981,0.48564086,69855.0,69854.0,0.0001821]
[1730480849222,0.143168,69848.0,69847.0,0.21468749]
[1730480849439,0.143168,69848.0,69827.0,0.21468749]
[1730480849440,0.266202,69831.0,69827.0,0.21468749]
[1730480849690,0.266202,69831.0,69812.0,0.21477749]
[1730480849691,0.143239,69813.0,69812.0,0.21477749]
[1730480849882,0.3005674,69813.0,69812.0,0.21477749]
[1730480850174,0.2775674,69813.0,69812.0,9e-05]
[1730480850502,0.48119693,69813.0,69812.0,9e-05]
[1730480850739,0.65920038,69813.0,69812.0,9e-05]
[1730480850968,0.65896951,69813.0,69812.0,9e-05]
[1730480851375,0.873657,69813.0,69812.0,1e-06]
[1730480851594,0.266262,69802.0,69789.0,0.00244318]
[1730480851810,0.266262,69802.0,69800.0,0.05801907]
[1730480851811,0.143264,69801.0,69800.0,0.05801907]
[1730480852033,0.4826202,69801.0,69800.0,0.05801907]
[1730480852245,0.52424275,69801.0,69800.0,0.05801907]
[1730480852450,0.43904765,69801.0,69800.0,0.05801907]
[1730480852691,0.65373514,69801.0,69800.0,0.05801907]
[1730480852884,0.43904765,69801.0,69800.0,0.05801907]
[1730480853457,0.45304765,69801.0,69800.0,0.05801907]
[1730480853697,0.58630862,69801.0,69800.0,0.05801907]
[1730480853836,0.43904765,69801.0,69800.0,0.05801907]
[1730480854052,0.45304765,69801.0,69800.0,0.05801907]
[1730480854412,0.46704765,69801.0,69800.0,0.05801907]
[1730480854889,0.0483284,69801.0,69800.0,0.05801907]
[1730480855090,0.014,69801.0,69800.0,0.20128507]
[1730480855531,0.21468749,69815.0,69802.0,0.286524]
[1730480855760,0.21468749,69815.0,69814.0,0.143237]
[1730480856217,0.21468749,69815.0,69814.0,0.15302611]
[1730480856417,0.286425,69827.0,69814.0,0.00978911]
[1730480856632,0.286425,69827.0,69812.0,0.286483]
[1730480856633,0.00285717,69826.0,69821.0,0.143222]
[1730480856849,0.286366,69841.0,69829.0,0.143206]
[1730480857075,0.286366,69841.0,69828.0,0.143208]
[1730480857076,0.2277644,69830.0,69828.0,0.143208]
[1730480857256,0.143201,69832.0,69829.0,0.00959972]
[1730480857464,0.0130773,69831.0,69829.0,0.00959972]
[1730480857604,0.57260699,69848.0,69823.0,0.286438]
[1730480857605,0.21468749,69848.0,69823.0,0.286438]
[1730480857814,0.286377,69838.0,69832.0,0.143199]
[1730480858023,0.286372,69839.0,69830.0,0.286405]
[1730480858233,0.143191,69837.0,69833.0,0.143197]
[1730480858467,0.286363,69842.0,69819.0,0.30568749]
[1730480858468,0.286363,69842.0,69831.0,0.00957447]
[1730480858668,0.50102549,69848.0,69819.0,0.30568749]
[1730480858669,0.30231305,69839.0,69834.0,0.00953661]
[1730480858872,0.01308288,69838.0,69820.0,0.00286394]
[1730480859104,0.01308288,69838.0,69819.0,0.30568749]
[1730480859105,0.30232105,69837.0,69832.0,0.001]
[1730480859294,0.01308288,69836.0,69832.0,0.001]
[1730480859491,0.28924717,69835.0,69833.0,0.00954923]
[1730480859702,0.143198,69833.0,69832.0,0.001]
[1730480859906,0.15627971,69833.0,69832.0,0.001]
[1730480860527,0.286403,69832.0,69825.0,0.28643]
[1730480860794,0.143196,69835.0,69827.0,0.286422]
[1730480860996,0.143196,69835.0,69828.0,0.00961234]
[1730480860997,0.143194,69835.0,69828.0,0.00961234]
[1730480861214,0.143206,69829.0,69828.0,0.00961234]
[1730480861414,0.01308663,69829.0,69819.0,0.091]
[1730480861648,0.01308663,69829.0,69820.0,0.00971334]
[1730480861649,0.0159438,69828.0,69820.0,0.00971334]
[1730480861872,0.143223,69821.0,69820.0,0.00971334]
[1730480862068,0.143242,69812.0,69805.0,0.143256]
[1730480862261,0.13845525,69827.0,69805.0,0.143255]
[1730480862262,0.143251,69808.0,69805.0,0.143255]
[1730480862476,0.429738,69810.0,69806.0,0.00989015]
[1730480862681,0.143243,69811.0,69807.0,0.143251]
[1730480862824,0.21468749,69810.0,69805.0,0.143255]
[1730480863054,0.00285717,69817.0,69809.0,0.143246]
[1730480863263,0.01310315,69816.0,69806.0,0.00989015]
[1730480863487,0.01310315,69815.0,69810.0,0.00983963]
[1730480863665,0.01310315,69815.0,69805.0,0.006]
[1730480863666,0.01310972,69814.0,69805.0,0.006]
[1730480863866,0.001,69812.0,69811.0,0.143243]
[1730480864065,0.01410972,69812.0,69811.0,0.143243]
[1730480864273,0.001,69812.0,69811.0,0.29152525]
[1730480864485,0.21468749,69818.0,69811.0,0.009827]
[1730480864731,0.001,69815.0,69811.0,0.009827]
[1730480864948,0.143241,69813.0,69810.0,0.007]
[1730480865170,0.1563566,69812.0,69810.0,0.007]
[1730480865296,0.143242,69812.0,69811.0,0.009827]
[1730480865506,0.143242,69812.0,69810.0,0.007]
[1730480865507,0.03417618,69812.0,69810.0,0.007]
[1730480865708,0.03417618,69811.0,69804.0,0.0924]
[1730480865975,0.01314638,69810.0,69809.0,0.143248]
[1730480866412,0.01314638,69810.0,69809.0,0.00985226]
[1730480866816,0.01314638,69810.0,69809.0,0.15310026]
[1730480867241,0.0342123,69810.0,69809.0,0.00985226]
[1730480867439,0.1774573,69810.0,69809.0,0.00985226]
[1730480867709,0.1774573,69810.0,69806.0,0.00447827]
[1730480867939,0.001,69811.0,69809.0,0.00985226]
[1730480868153,0.1774649,69810.0,69806.0,0.143252]
[1730480868354,0.0342199,69809.0,69806.0,0.143252]
[1730480868553,0.0342199,69808.0,69806.0,0.14773027]
[1730480868806,0.002,69810.0,69809.0,0.143248]
[1730480869000,0.03522625,69810.0,69809.0,0.143248]
[1730480869449,0.03522625,69810.0,69809.0,0.145248]
[1730480869649,0.03522625,69810.0,69809.0,0.002]
[1730480869775,0.03422625,69810.0,69807.0,0.00447827]
[1730480869996,0.03422625,69809.0,69808.0,0.143248]
[1730480870434,0.03422625,69809.0,69808.0,0.14772627]
[1730480870696,0.03422625,69809.0,69808.0,0.143248]
[1730480870905,0.001,69810.0,69809.0,0.143248]
[1730480871298,0.03424204,69810.0,69809.0,0.14772663]
[1730480872210,0.01517015,69810.0,69809.0,0.15772663]
[1730480872386,0.03626363,69810.0,69809.0,0.15772663]
[1730480872972,0.03526363,69810.0,69809.0,0.15572663]
[1730480873372,0.03529489,69810.0,69809.0,0.14972647]
[1730480873795,0.03629489,69810.0,69809.0,0.01547847]
[1730480874001,0.17953989,69810.0,69809.0,0.01547847]
[1730480874389,0.03630695,69810.0,69809.0,0.011]
[1730480874606,0.17855195,69810.0,69809.0,0.01347889]
[1730480875001,0.17855195,69810.0,69785.0,0.0186891]
[1730480875002,0.143264,69801.0,69785.0,0.0186891]
[1730480875228,0.18042812,69801.0,69795.0,0.00447938]
[1730480875431,0.18042812,69801.0,69788.0,0.14776838]
[1730480875645,0.18042812,69801.0,69790.0,0.143286]
[1730480875944,0.18042812,69801.0,69789.0,0.00244318]
[1730480876148,0.18542812,69801.0,69789.0,0.00692256]
[1730480876351,0.18542812,69801.0,69790.0,0.143286]
[1730480876569,0.18542812,69801.0,69789.0,0.00244318]
[1730480876816,0.18042812,69801.0,69789.0,0.00244318]
[1730480877059,0.25577553,69801.0,69789.0,0.14573118]
[1730480877286,0.25577553,69801.0,69789.0,0.00244318]
[1730480877532,0.17757095,69801.0,69789.0,0.00244318]
[1730480877765,0.18857095,69801.0,69800.0,0.05984107]
[1730480877980,0.21645398,69801.0,69800.0,0.05984107]
[1730480878202,0.20550668,69801.0,69800.0,0.06880702]
[1730480878427,0.18048109,69801.0,69800.0,0.05884107]
[1730480878666,0.20648109,69801.0,69800.0,0.05984107]
[1730480878878,0.19248109,69801.0,69800.0,0.05984107]
[1730480879089,0.04635992,69801.0,69800.0,0.05984107]
[1730480879320,0.05935992,69801.0,69800.0,0.21307302]
[1730480879547,0.05935992,69801.0,69800.0,0.35439337]
[1730480879779,0.05935992,69801.0,69800.0,0.44872827]
[1730480879780,0.03821535,69801.0,69800.0,0.44872827]
[1730480880455,0.02621535,69801.0,69800.0,0.44772827]
[1730480880879,0.02321535,69801.0,69800.0,0.44872827]
[1730480881105,0.01,69801.0,69800.0,0.44872827]
[1730480881347,0.01722839,69801.0,69800.0,0.44772827]
[1730480881572,0.01422839,69801.0,69800.0,0.45772827]
[1730480881786,0.01522839,69801.0,69800.0,0.46072827]
[1730480882232,0.03639276,69801.0,69800.0,0.32227302]
[1730480882923,0.03639276,69801.0,69800.0,0.22507302]
[1730480883589,0.03639276,69801.0,69800.0,0.22793812]
[1730480883821,0.03642895,69801.0,69800.0,0.22507302]
[1730480884285,0.17969295,69801.0,69800.0,0.08180702]
[1730480884729,0.39723761,69801.0,69800.0,0.07184107]
[1730480884956,0.32766922,69801.0,69800.0,0.07184107]
[1730480885198,0.22374442,69801.0,69800.0,0.07184107]
[1730480885407,0.17969295,69801.0,69800.0,0.07184107]
[1730480885639,0.03642895,69801.0,69800.0,0.08180702]
[1730480885883,0.03642895,69801.0,69800.0,0.74582015]
[1730480886541,0.03542895,69801.0,69800.0,0.73582015]
[1730480887225,0.001644,69810.0,69800.0,0.06880702]
[1730480887472,0.022,69801.0,69800.0,0.21307302]
[1730480887903,0.0220539,69809.0,69808.0,0.14325]
[1730480888116,0.0564525,69809.0,69808.0,0.14325]
[1730480888334,0.0564525,69809.0,69808.0,0.15311489]
[1730480890374,0.0353986,69809.0,69808.0,0.15311489]
[1730480890574,0.2007005,69809.0,69808.0,0.00986489]
[1730480890814,0.001,69809.0,69808.0,0.14325]
[1730480891029,0.05747714,69809.0,69808.0,0.15611489]
[1730480891438,0.03541576,69809.0,69808.0,0.15611489]